fUSD/lending_fUSD_20240611
["ID","MTS","AMOUNT","RATE_DAILY","PERIOD"]
[329163089,1718143896239,-762.78,0.00022328,2]
[329163090,1718143896256,-1343.72,0.00022328,2]
[329163091,1718143896269,-5193.52,0.00022328,2]
[329163092,1718143896285,-2543.48,0.00022328,2]
[329163093,1718143896298,-6090.41,0.00022328,2]
[329163094,1718143896310,-1671.48,0.00022328,2]
[329163095,1718143896325,-5608.46,0.00022328,2]
[329163096,1718143896337,-2774.33,0.00022328,2]
[329163097,1718143896348,-500.0,0.00022328,2]
[329163098,1718143896360,-520.82941389,0.00022328,2]
[329163099,1718143896373,-1459.33,0.00022328,2]
[329163100,1718143896385,-16231.51,0.00022328,2]
[329163101,1718143896396,-1816.15,0.00022328,2]
[329163102,1718143896410,-3510.99,0.00022328,2]
[329163103,1718143896423,-4714.6,0.00022328,2]
[329163104,1718143896438,-5737.42,0.00022328,2]
[329163105,1718143896450,-500.0,0.00022328,2]
[329163106,1718143896462,-1065.02,0.00022328,2]
[329163107,1718143896473,-567.55634145,0.00022328,2]
[329163108,1718143896485,-500.0,0.00022328,2]
[329163109,1718143896496,-2341.8,0.00022328,2]
[329163110,1718143896508,-500.0,0.00022328,2]
[329163111,1718143896519,-968.44,0.00022328,2]
[329163112,1718143896532,-500.0,0.00022328,2]
[329163113,1718143896545,-1408.24,0.00022328,2]
[329163114,1718143896556,-4327.87,0.00022328,2]
[329163115,1718143896567,-535.81860674,0.00022328,2]
[329163116,1718143896579,-500.0,0.00022328,2]
[329163117,1718143896590,-551.84681049,0.00022328,2]
[329163118,1718143896601,-1863.5,0.00022328,2]
[329163119,1718143896613,-531.44664461,0.00022328,2]
[329163120,1718143896625,-2194.68,0.00022328,2]
[329163121,1718143896657,-1058.76,0.00022328,2]
[329163122,1718143896673,-500.0,0.00022328,2]
[329163123,1718143896684,-1340.35,0.00022328,2]
[329163124,1718143896700,-500.0,0.00022328,2]
[329163125,1718143896712,-500.0,0.00022328,2]
[329163126,1718143896724,-500.0,0.00022328,2]
[329163127,1718143896736,-4027.9,0.00022328,2]
[329163128,1718143896747,-4892.47,0.00022328,2]
[329163129,1718143896759,-1254.49,0.00022328,2]
[329163130,1718143896770,-533.03417685,0.00022328,2]
[329163131,1718143896781,-858.69,0.00022328,2]
[329163132,1718143896793,-665.86,0.00022328,2]
[329163133,1718143896804,-880.25,0.00022336,2]
[329163134,1718143896816,-3767.18954229,0.00022386,2]
[329163135,1718143896827,-150.0,0.000224,3]
[329163136,1718143896839,-150.0,0.000224,3]
[329163137,1718143896850,-600.0,0.00022409,3]
[329163138,1718143896862,-600.0,0.00022409,3]
[329163139,1718143896875,-150.0,0.00022464,7]
[329163140,1718143896886,-1223.45696539,0.00022465,5]
[329163141,1718143896897,-631.65,0.00022465,2]
[329163142,1718143896908,-573.7,0.00022465,2]
[329163143,1718143896921,-500.0,0.00022465,2]
[329163144,1718143896931,-589.07,0.00022465,2]
[329163145,1718143896943,-500.0,0.00022465,2]
[329163146,1718143896954,-878.71,0.00022465,2]
[329163147,1718143896965,-500.0,0.00022465,2]
[329163148,1718143896976,-500.0,0.00022465,2]
[329163149,1718143896988,-708.35,0.00022465,2]
[329163150,1718143896999,-500.0,0.00022465,2]
[329163151,1718143897010,-512.01685378,0.00022465,2]
[329163152,1718143897022,-661.26,0.00022465,2]
[329163153,1718143897034,-500.0,0.00022465,2]
[329163154,1718143897046,-359.24,0.00022465,2]
[329163155,1718143897057,-500.0,0.00022465,2]
[329163156,1718143897069,-500.0,0.00022465,2]
[329163157,1718143897080,-682.09,0.00022465,2]
[329163158,1718143897091,-500.0,0.00022465,2]
[329163159,1718143897105,-500.0,0.00022465,2]
[329163160,1718143897116,-539.0,0.00022465,2]
[329163161,1718143897127,-500.0,0.00022465,2]
[329163162,1718143897138,-549.9625754,0.00022465,2]
[329163163,1718143897150,-500.0,0.00022465,2]
[329163164,1718143897162,-500.0,0.00022465,2]
[329163165,1718143897173,-500.0,0.00022465,2]
[329163166,1718143897187,-500.0,0.00022465,2]
[329163167,1718143897200,-500.0,0.00022465,2]
[329163168,1718143897213,-500.0,0.00022465,2]
[329163169,1718143897225,-500.0,0.00022465,2]
[329163170,1718143897236,-500.0,0.00022465,2]
[329163171,1718143897247,-500.0,0.00022465,2]
[329163172,1718143897258,-500.0,0.00022465,2]
[329163173,1718143897269,-500.0,0.00022465,2]
[329163174,1718143897282,-794.24,0.00022465,2]
[329163175,1718143897295,-500.0,0.00022465,2]
[329163176,1718143897306,-500.0,0.00022465,2]
[329163177,1718143897317,-633.11,0.00022465,2]
[329163178,1718143897328,-500.0,0.00022465,2]
[329163179,1718143897339,-500.0,0.00022465,2]
[329163180,1718143897350,-500.0,0.00022465,2]
[329163181,1718143897361,-818.17,0.00022465,2]
[329163182,1718143897374,-500.0,0.00022465,2]
[329163183,1718143897385,-500.0,0.00022465,2]
[329163184,1718143897396,-500.0,0.00022465,2]
[329163185,1718143897408,-582.18,0.00022465,2]
[329163186,1718143897419,-665.24,0.00022465,2]
[329163187,1718143897432,-974.61,0.00022465,2]
[329163188,1718143897443,-500.0,0.00022465,2]
[329163189,1718143897456,-500.0,0.00022465,2]
[329163190,1718143897467,-500.0,0.00022465,2]
[329163191,1718143897478,-524.27,0.00022465,2]
[329163192,1718143897489,-500.0,0.00022465,2]
[329163193,1718143897500,-500.0,0.00022465,2]
[329163194,1718143897511,-637.09785996,0.00022465,2]
[329163195,1718143897522,-500.0,0.00022465,2]
[329163196,1718143897534,-776.34,0.00022465,2]
[329163197,1718143897545,-608.01,0.00022465,2]
[329163198,1718143897556,-1304.52,0.00022465,2]
[329163199,1718143897567,-500.0,0.00022465,2]
[329163200,1718143897578,-500.0,0.00022465,2]
[329163201,1718143897589,-500.0,0.00022465,2]
[329163202,1718143897600,-500.0,0.00022465,2]
[329163203,1718143897611,-500.0,0.00022465,2]
[329163204,1718143897622,-630.83,0.00022465,2]
[329163205,1718143897641,-500.0,0.00022465,2]
[329163206,1718143897656,-500.0,0.00022465,2]
[329163207,1718143897670,-500.0,0.00022465,2]
[329163208,1718143897681,-500.0,0.00022465,2]
[329163209,1718143897692,-1295.45,0.00022465,2]
[329163210,1718143897704,-500.0,0.00022465,2]
[329163211,1718143897714,-858.84,0.00022465,2]
[329163212,1718143897726,-500.0,0.00022465,2]
[329163213,1718143897739,-500.0,0.00022465,2]
[329163214,1718143897750,-718.91,0.00022465,2]
[329163215,1718143897761,-500.0,0.00022465,2]
[329163216,1718143897772,-500.0,0.00022465,2]
[329163217,1718143897783,-996.8,0.00022465,2]
[329163218,1718143897794,-500.0,0.00022465,2]
[329163219,1718143897805,-500.0,0.00022465,2]
[329163220,1718143897817,-648.46,0.00022465,2]
[329163221,1718143897828,-924.63,0.00022465,2]
[329163222,1718143898025,-500.0,0.00022465,2]
[329163223,1718143898044,-500.0,0.00022465,2]
[329163224,1718143898055,-500.0,0.00022465,2]
[329163225,1718143898066,-660.23,0.00022465,2]
[329163226,1718143898078,-735.42,0.00022465,2]
[329163227,1718143898089,-500.0,0.00022465,2]
[329163228,1718143898102,-167.83245166,0.00022465,2]
[329163229,1718143898114,-552.07,0.00022465,2]
[329163230,1718143898124,-932.37,0.00022465,2]
[329163231,1718143898135,-500.0,0.00022465,2]
[329163232,1718143898147,-500.0,0.00022465,2]
[329163233,1718143898157,-500.0,0.00022465,2]
[329163234,1718143898169,-948.43,0.00022465,2]
[329163235,1718143898180,-655.21,0.00022465,2]
[329163236,1718143898191,-500.0,0.00022465,2]
[329163237,1718143898203,-500.0,0.00022465,2]
[329163238,1718143898213,-500.0,0.00022465,2]
[329163239,1718143898224,-790.57,0.00022465,2]
[329163240,1718143898235,-500.0,0.00022465,2]
[329163241,1718143898246,-1461.45,0.00022465,2]
[329163242,1718143898256,-1010.47,0.00022465,2]
[329163243,1718143898267,-1048.44,0.00022465,2]
[329163244,1718143898279,-500.0,0.00022465,2]
[329163245,1718143898289,-511.09607297,0.00022465,2]
[329163246,1718143898300,-500.0,0.00022465,2]
[329163247,1718143898310,-500.0,0.00022465,2]
[329163248,1718143898323,-762.58,0.00022465,2]
[329163249,1718143898334,-500.0,0.00022465,2]
[329163250,1718143898346,-500.0,0.00022465,2]
[329163251,1718143898359,-668.93,0.00022465,2]
[329163252,1718143898370,-694.86,0.00022465,2]
[329163253,1718143898381,-500.0,0.00022465,2]
[329163254,1718143898391,-500.0,0.00022465,2]
[329163255,1718143898401,-1737.83,0.00022465,2]
[329163256,1718143898413,-1059.25,0.00022465,2]
[329163257,1718143898423,-500.0,0.00022465,2]
[329163258,1718143898435,-522.51,0.00022465,2]
[329163259,1718143898445,-1363.71,0.00022465,2]
[329163260,1718143898458,-500.0,0.00022465,2]
[329163261,1718143898470,-871.41,0.00022465,2]
[329163262,1718143898481,-888.26,0.00022465,2]
[329163263,1718143898493,-685.03,0.00022465,2]
[329163264,1718143898504,-789.02,0.00022465,2]
[329163265,1718143898514,-500.0,0.00022465,2]
[329163266,1718143898526,-500.0,0.00022465,2]
[329163267,1718143898537,-500.0,0.00022465,2]
[329163268,1718143898548,-889.87,0.00022465,2]
[329163269,1718143898558,-559.67,0.00022465,2]
[329163270,1718143898569,-500.0,0.00022465,2]
[329163271,1718143898580,-500.0,0.00022465,2]
[329163272,1718143898592,-808.09,0.00022465,2]
[329163273,1718143898602,-561.74,0.00022465,2]
[329163274,1718143898613,-1272.78,0.00022465,2]
[329163275,1718143898626,-1149.78,0.00022465,2]
[329163276,1718143898644,-625.85,0.00022465,2]
[329163277,1718143898662,-2216.96,0.00022465,2]
[329163278,1718143898673,-531.26,0.00022465,2]
[329163279,1718143898684,-925.96,0.00022465,2]
[329163280,1718143898694,-500.0,0.00022465,2]
[329163281,1718143898705,-500.0,0.00022465,2]
[329163282,1718143898717,-500.0,0.00022465,2]
[329163283,1718143898727,-500.0,0.00022465,2]
[329163284,1718143898738,-969.45,0.00022465,2]
[329163285,1718143898748,-2491.09,0.00022465,2]
[329163286,1718143898759,-1570.24,0.00022465,2]
[329163287,1718143898769,-1631.05,0.00022465,2]
[329163288,1718143898780,-500.0,0.00022465,2]
[329163289,1718143898791,-926.19,0.00022465,2]
[329163290,1718143898802,-500.0,0.00022465,2]
[329163291,1718143898813,-502.23,0.00022465,2]
[329163292,1718143898867,-812.63,0.00022465,2]
[329163293,1718143898879,-511.15,0.00022465,2]
[329163294,1718143898889,-500.0,0.00022465,2]
[329163295,1718143898913,-500.0,0.00022465,2]
[329163296,1718143898929,-2452.95,0.00022465,2]
[329163297,1718143898948,-782.31,0.00022465,2]
[329163298,1718143898962,-2101.79,0.00022465,2]
[329163299,1718143898977,-961.94,0.00022465,2]
[329163300,1718143899003,-500.0,0.00022465,2]
[329163301,1718143899035,-500.0,0.00022465,2]
[329163302,1718143899060,-688.94,0.00022465,2]
[329163303,1718143899070,-529.93,0.00022465,2]
[329163304,1718143899081,-1187.22,0.00022465,2]
[329163305,1718143899109,-500.0,0.00022465,2]
[329163306,1718143899131,-500.0,0.00022465,2]
[329163307,1718143899142,-500.0,0.00022465,2]
[329163308,1718143899161,-250.0,0.00022465,2]
[329163309,1718143899179,-500.0,0.00022465,2]
[329163310,1718143899200,-500.0,0.00022465,2]
[329163311,1718143899212,-500.0,0.00022465,2]
[329163312,1718143899229,-1063.98,0.00022465,2]
[329163313,1718143899242,-500.0,0.00022465,2]
[329163314,1718143899262,-682.5,0.00022465,2]
[329163315,1718143899274,-500.0,0.00022465,2]
[329163316,1718143899293,-500.0,0.00022465,2]
[329163317,1718143899307,-520.61,0.00022465,2]
[329163318,1718143899318,-2395.83,0.00022465,2]
[329163319,1718143899330,-500.0,0.00022465,2]
[329163320,1718143899342,-500.0,0.00022465,2]
[329163321,1718143899354,-619.37,0.00022465,2]
[329163322,1718143899365,-10573.22765155,0.00022465,2]
[329163323,1718143899376,-1674.91,0.00022465,2]
[329163324,1718143899395,-1370.7,0.00022465,2]
[329163325,1718143899410,-627.51,0.00022465,2]
[329163326,1718143899424,-1254.33,0.00022465,2]
[329163327,1718143899442,-729.01,0.00022465,2]
[329163328,1718143899457,-711.92,0.00022465,2]
[329163329,1718143899476,-500.0,0.00022465,2]
[329163330,1718143899497,-500.0,0.00022465,2]
[329163331,1718143899511,-548.35,0.00022465,2]
[329163332,1718143899522,-1114.19,0.00022465,2]
[329163333,1718143899534,-500.0,0.00022465,2]
[329163334,1718143899546,-500.0,0.00022465,2]
[329163335,1718143899557,-500.0,0.00022465,2]
[329163336,1718143899577,-500.0,0.00022465,2]
[329163337,1718143899604,-500.0,0.00022465,2]
[329163338,1718143899619,-500.0,0.00022465,2]
[329163339,1718143899637,-500.0,0.00022465,2]
[329163340,1718143899664,-1505.23,0.00022465,2]
[329163341,1718143899681,-500.0,0.00022465,2]
[329163342,1718143899695,-1205.0,0.00022465,2]
[329163343,1718143899717,-1257.98,0.00022465,2]
[329163344,1718143899733,-799.33,0.00022465,2]
[329163345,1718143899752,-500.0,0.00022465,2]
[329163346,1718143899764,-951.82,0.00022465,2]
[329163347,1718143899779,-500.0,0.00022465,2]
[329163348,1718143899796,-508.27,0.00022465,2]
[329163349,1718143899818,-1828.46,0.00022465,2]
[329163350,1718143899832,-500.0,0.00022465,2]
[329163351,1718143899843,-500.0,0.00022465,2]
[329163352,1718143899859,-1268.83,0.00022465,2]
[329163353,1718143899873,-1206.02,0.00022465,2]
[329163354,1718143899886,-1189.9,0.00022465,2]
[329163355,1718143899898,-500.0,0.00022465,2]
[329163356,1718143899911,-500.0,0.00022465,2]
[329163357,1718143899933,-500.0,0.00022465,2]
[329163358,1718143899944,-1336.01,0.00022465,2]
[329163359,1718143899957,-606.95,0.00022465,2]
[329163360,1718143899977,-500.0,0.00022465,2]
[329163361,1718143899998,-500.0,0.00022465,2]
[329163362,1718143900016,-1031.8,0.00022465,2]
[329163363,1718143900027,-837.69,0.00022465,2]
[329163364,1718143900039,-500.0,0.00022465,2]
[329163365,1718143900052,-245.67365079,0.00022465,2]
[329163366,1718143900063,-658.91,0.00022465,2]
[329163367,1718143900073,-2239.74,0.00022465,2]
[329163368,1718143900086,-1037.17,0.00022465,2]
[329163369,1718143900098,-814.64,0.00022465,2]
[329163370,1718143900115,-2160.05,0.00022465,2]
[329163371,1718143900126,-500.0,0.00022465,2]
[329163372,1718143900139,-500.0,0.00022465,2]
[329163373,1718143900151,-500.0,0.00022465,2]
[329163374,1718143900161,-500.0,0.00022465,2]
[329163375,1718143900174,-500.0,0.00022465,2]
[329163376,1718143900187,-500.0,0.00022465,2]
[329163377,1718143900199,-500.0,0.00022465,2]
[329163378,1718143900212,-632.13,0.00022465,2]
[329163379,1718143900224,-500.0,0.00022465,2]
[329163380,1718143900235,-1509.17,0.00022465,2]
[329163381,1718143900245,-948.43,0.00022465,2]
[329163382,1718143900258,-500.0,0.00022465,2]
[329163383,1718143900269,-500.0,0.00022465,2]
[329163384,1718143900280,-2016.38,0.00022465,2]
[329163385,1718143900291,-500.0,0.00022465,2]
[329163386,1718143900302,-939.94,0.00022465,2]
[329163387,1718143900312,-500.0,0.00022465,2]
[329163388,1718143900322,-528.71,0.00022465,2]
[329163389,1718143900334,-490.11030509,0.00022465,2]
[329163390,1718143900344,-673.2,0.00022465,2]
[329163391,1718143900355,-500.0,0.00022465,2]
[329163392,1718143900365,-1244.24,0.00022465,2]
[329163393,1718143900376,-500.0,0.00022465,2]
[329163394,1718143900387,-500.0,0.00022465,2]
[329163395,1718143900398,-500.0,0.00022465,2]
[329163396,1718143900409,-500.0,0.00022465,2]
[329163397,1718143900421,-500.0,0.00022465,2]
[329163398,1718143900431,-500.0,0.00022465,2]
[329163399,1718143900441,-500.0,0.00022465,2]
[329163400,1718143900452,-500.0,0.00022465,2]
[329163401,1718143900462,-695.13,0.00022465,2]
[329163402,1718143900472,-603.19238273,0.00022465,2]
[329163403,1718143900483,-715.26,0.00022465,2]
[329163404,1718143900493,-1588.21,0.00022465,2]
[329163405,1718143900504,-719.82,0.00022465,2]
[329163406,1718143900514,-533.91,0.00022465,2]
[329163407,1718143900525,-644.97,0.00022465,2]
[329163408,1718143900535,-500.0,0.00022465,2]
[329163409,1718143900547,-505.67,0.00022465,2]
[329163410,1718143900558,-500.0,0.00022465,2]
[329163411,1718143900568,-500.0,0.00022465,2]
[329163412,1718143900579,-500.0,0.00022465,2]
[329163413,1718143900590,-500.0,0.00022465,2]
[329163414,1718143900601,-1603.59,0.00022465,2]
[329163415,1718143900612,-500.0,0.00022465,2]
[329163416,1718143900623,-500.0,0.00022465,2]
[329163417,1718143900635,-658.21,0.00022465,2]
[329163418,1718143900657,-547.3,0.00022465,2]
[329163419,1718143900668,-1503.92,0.00022465,2]
[329163420,1718143900680,-516.31,0.00022465,2]
[329163421,1718143900690,-500.0,0.00022465,2]
[329163422,1718143900701,-754.29,0.00022465,2]
[329163423,1718143900712,-500.0,0.00022465,2]
[329163424,1718143900723,-1236.45,0.00022465,2]
[329163425,1718143900733,-500.0,0.00022465,2]
[329163426,1718143900743,-500.0,0.00022465,2]
[329163427,1718143900753,-654.67,0.00022465,2]
[329163428,1718143900763,-2305.08,0.00022465,2]
[329163429,1718143900773,-500.0,0.00022465,2]
[329163430,1718143900785,-500.0,0.00022465,2]
[329163431,1718143900796,-511.43,0.00022465,2]
[329163432,1718143900807,-689.6,0.00022465,2]
[329163433,1718143900817,-332.51442513,0.00022465,2]
[329163434,1718143900829,-696.7,0.00022465,2]
[329163435,1718143900842,-1356.62,0.00022465,2]
[329163436,1718143900854,-1048.78,0.00022465,2]
[329163437,1718143900869,-500.0,0.00022465,2]
[329163438,1718143900882,-500.0,0.00022465,2]
[329163439,1718143900893,-842.36,0.00022465,2]
[329163440,1718143900906,-573.8,0.00022465,2]
[329163441,1718143900916,-500.0,0.00022465,2]
[329163442,1718143900928,-707.13,0.00022465,2]
[329163443,1718143900941,-2628.93,0.00022465,2]
[329163444,1718143900951,-500.0,0.00022465,2]
[329163445,1718143900963,-500.0,0.00022465,2]
[329163446,1718143900975,-1072.02,0.00022465,2]
[329163447,1718143900987,-1737.18,0.00022465,2]
[329163448,1718143900999,-2047.75,0.00022465,2]
[329163449,1718143901011,-500.0,0.00022465,2]
[329163450,1718143901022,-1121.19,0.00022465,2]
[329163451,1718143901033,-500.0,0.00022465,2]
[329163452,1718143901044,-1157.66,0.00022465,2]
[329163453,1718143901054,-509.21705492,0.00022465,2]
[329163454,1718143901065,-591.78,0.00022465,2]
[329163455,1718143901075,-515.34,0.00022465,2]
[329163456,1718143901087,-500.0,0.00022465,2]
[329163457,1718143901104,-500.0,0.00022465,2]
[329163458,1718143901119,-500.0,0.00022465,2]
[329163459,1718143901131,-688.69,0.00022465,2]
[329163460,1718143901149,-513.54,0.00022465,2]
[329163461,1718143901168,-917.1,0.00022465,2]
[329163462,1718143901182,-1533.34,0.00022465,2]
[329163463,1718143901200,-882.6,0.00022465,2]
[329163464,1718143901211,-500.0,0.00022465,2]
[329163465,1718143901223,-500.0,0.00022465,2]
[329163466,1718143901236,-500.0,0.00022465,2]
[329163467,1718143901253,-500.0,0.00022465,2]
[329163468,1718143901268,-500.0,0.00022465,2]
[329163469,1718143901287,-1183.07,0.00022465,2]
[329163470,1718143901301,-705.17,0.00022465,2]
[329163471,1718143901313,-500.0,0.00022465,2]
[329163472,1718143901327,-500.0,0.00022465,2]
[329163473,1718143901338,-500.0,0.00022465,2]
[329163474,1718143901350,-1932.73,0.00022465,2]
[329163475,1718143901362,-500.0,0.00022465,2]
[329163476,1718143901376,-530.35,0.00022465,2]
[329163477,1718143901387,-1087.21,0.00022465,2]
[329163478,1718143901398,-222.79,0.00022465,2]
[329163479,1718143901411,-614.63313855,0.00022465,2]
[329163480,1718143901424,-553.87,0.00022465,2]
[329163481,1718143901439,-500.0,0.00022465,2]
[329163482,1718143901455,-2104.07,0.00022465,2]
[329163483,1718143901465,-744.3,0.00022465,2]
[329163484,1718143901478,-697.71,0.00022465,2]
[329163485,1718143901490,-962.85,0.00022465,2]
[329163486,1718143901502,-500.0,0.00022465,2]
[329163487,1718143901528,-524.07,0.00022465,2]
[329163488,1718143901541,-1371.95,0.00022465,2]
[329163489,1718143901554,-500.0,0.00022465,2]
[329163490,1718143901571,-500.0,0.00022465,2]
[329163491,1718143901590,-500.0,0.00022465,2]
[329163492,1718143901602,-1222.61,0.00022465,2]
[329163493,1718143901615,-500.0,0.00022465,2]
[329163494,1718143901626,-676.34,0.00022465,2]
[329163495,1718143901665,-4872.71,0.00022465,2]
[329163496,1718143901678,-469.94,0.00022465,2]
[329163497,1718143901688,-1358.27,0.00022465,2]
[329163498,1718143901698,-500.0,0.00022465,2]
[329163499,1718143901708,-1734.6,0.00022465,2]
[329163500,1718143901719,-500.0,0.00022465,2]
[329163501,1718143901730,-787.85,0.00022465,2]
[329163502,1718143901743,-500.0,0.00022465,2]
[329163503,1718143901753,-484.37,0.00022465,2]
[329163504,1718143901764,-510.46,0.00022465,2]
[329163505,1718143901775,-500.0,0.00022465,2]
[329163506,1718143901976,-697.24,0.00022465,2]
[329163507,1718143901989,-959.45,0.00022465,2]
[329163508,1718143902002,-500.0,0.00022465,2]
[329163509,1718143902017,-500.0,0.00022465,2]
[329163510,1718143902028,-971.41,0.00022465,2]
[329163511,1718143902038,-1166.54,0.00022465,2]
[329163512,1718143902048,-542.91,0.00022465,2]
[329163513,1718143902057,-931.63,0.00022465,2]
[329163514,1718143902068,-500.0,0.00022465,2]
[329163515,1718143902080,-807.42,0.00022465,2]
[329163516,1718143902091,-1468.97,0.00022465,2]
[329163517,1718143902106,-500.0,0.00022465,2]
[329163518,1718143902118,-500.0,0.00022465,2]
[329163519,1718143902129,-12091.54,0.00022465,2]
[329163520,1718143902140,-954.89,0.00022465,2]
[329163521,1718143902152,-1034.68,0.00022465,2]
[329163522,1718143902162,-500.0,0.00022465,2]
[329163523,1718143902174,-555.98,0.00022465,2]
[329163524,1718143902185,-1390.74,0.00022465,2]
[329163525,1718143902197,-500.0,0.00022465,2]
[329163526,1718143902207,-984.61,0.00022465,2]
[329163527,1718143902218,-500.0,0.00022465,2]
[329163528,1718143902229,-1143.29,0.00022465,2]
[329163529,1718143902245,-203.75,0.00022465,2]
[329163530,1718143902256,-3650.65,0.00022465,2]
[329163531,1718143902268,-561.02,0.00022465,2]
[329163532,1718143902279,-500.0,0.00022465,2]
[329163533,1718143902289,-481.44957137,0.00022465,2]
[329163534,1718143902300,-500.0,0.00022465,2]
[329163535,1718143902311,-525.21,0.00022465,2]
[329163536,1718143902325,-2018.99,0.00022465,2]
[329163537,1718143902336,-500.0,0.00022465,2]
[329163538,1718143902348,-500.0,0.00022465,2]
[329163539,1718143902359,-1809.32,0.00022465,2]
[329163540,1718143902375,-3621.31,0.00022465,2]
[329163541,1718143902386,-1575.32,0.00022465,2]
[329163542,1718143902397,-1935.56,0.00022465,2]
[329163543,1718143902407,-1798.81,0.00022465,2]
[329163544,1718143902420,-500.0,0.00022465,2]
[329163545,1718143902430,-500.0,0.00022465,2]
[329163546,1718143902443,-635.1,0.00022465,2]
[329163547,1718143902456,-668.54,0.00022465,2]
[329163548,1718143902469,-523.1,0.00022465,2]
[329163549,1718143902481,-5115.78,0.00022465,2]
[329163550,1718143902492,-2263.33,0.00022465,2]
[329163551,1718143902504,-1305.95,0.00022465,2]
[329163552,1718143902517,-500.0,0.00022465,2]
[329163553,1718143902530,-500.0,0.00022465,2]
[329163554,1718143902540,-500.0,0.00022465,2]
[329163555,1718143902554,-650.5,0.00022465,2]
[329163556,1718143902564,-605.18,0.00022465,2]
[329163557,1718143902579,-500.0,0.00022465,2]
[329163558,1718143902594,-500.0,0.00022465,2]
[329163559,1718143902614,-1854.03,0.00022465,2]
[329163560,1718143902628,-1325.75,0.00022465,2]
[329163561,1718143902660,-500.0,0.00022465,2]
[329163562,1718143902675,-904.82,0.00022465,2]
[329163563,1718143902685,-4848.04,0.00022465,2]
[329163564,1718143902695,-2437.36,0.00022465,2]
[329163565,1718143902708,-586.05,0.00022465,2]
[329163566,1718143902720,-2125.72,0.00022465,2]
[329163567,1718143902732,-1420.23,0.00022465,2]
[329163568,1718143902746,-3549.56,0.00022465,2]
[329163569,1718143902758,-786.35,0.00022465,2]
[329163570,1718143902770,-500.0,0.00022465,2]
[329163571,1718143902785,-1200.96,0.00022465,2]
[329163572,1718143902800,-500.0,0.00022465,2]
[329163573,1718143902826,-7745.26,0.00022465,2]
[329163574,1718143902839,-919.56,0.00022465,2]
[329163575,1718143902858,-605.98,0.00022465,2]
[329163576,1718143902871,-1721.61,0.00022465,2]
[329163577,1718143902885,-2817.95,0.00022465,2]
[329163578,1718143902897,-897.61,0.00022465,2]
[329163579,1718143902912,-500.0,0.00022465,2]
[329163580,1718143902929,-500.0,0.00022465,2]
[329163581,1718143902943,-1117.79,0.00022465,2]
[329163582,1718143902953,-736.63,0.00022465,2]
[329163583,1718143902967,-3178.15,0.00022465,2]
[329163584,1718143902978,-676.44,0.00022465,2]
[329163585,1718143902989,-500.0,0.00022465,2]
[329163586,1718143903007,-500.0,0.00022465,2]
[329163587,1718143903018,-2534.68,0.00022465,2]
[329163588,1718143903028,-1857.7,0.00022465,2]